fUST/lending_fUST_20250225
["ID","MTS","AMOUNT","RATE_DAILY","PERIOD"]
[354368473,1740454217469,-150.48,0.0014,120]
[354368474,1740454217494,-500.0,0.0014,120]
[354368475,1740454217519,-500.0,0.00140274,120]
[354368476,1740454217545,-500.0,0.00140274,120]
[354368477,1740454217571,-500.0,0.00140274,120]
[354368478,1740454217595,-500.0,0.00140274,120]
[354368479,1740454217620,-500.0,0.00140274,120]
[354368480,1740454217647,-500.0,0.00140274,120]
[354368481,1740454217672,-150.48,0.00140274,64]
[354368482,1740454217698,-150.48,0.00140274,120]
[354368483,1740454217724,-500.0,0.00140274,120]
[354368484,1740454217749,-500.0,0.00140274,120]
[354368485,1740454217776,-150.48,0.00140274,120]
[354368486,1740454217804,-150.48,0.00140274,120]
[354368487,1740454217835,-150.48,0.00140274,120]
[354368488,1740454217865,-500.0,0.00140274,120]
[354368489,1740454217896,-500.0,0.00140548,120]
[354368490,1740454217923,-500.0,0.00140548,120]
[354368491,1740454217951,-500.0,0.00140548,120]
[354368492,1740454217978,-500.0,0.00140548,120]
[354368493,1740454218005,-500.0,0.00140548,120]
[354368494,1740454218031,-500.0,0.00140548,120]
[354368495,1740454218059,-150.48,0.00140548,64]
[354368496,1740454218086,-150.48,0.00140548,120]
[354368497,1740454218112,-500.0,0.00140548,120]
[354368498,1740454218140,-843.15696107,0.00140548,120]
[354368499,1740454218170,-150.48,0.00140548,120]
[354368500,1740454218197,-219.99863708,0.00140548,120]
[354368501,1740454218227,-151.6463746,0.00140548,120]
[354368502,1740454218256,-752.15004214,0.00140548,120]
[354368503,1740454218288,-500.0,0.00140822,120]
[354368504,1740454218420,-500.0,0.00140822,120]
[354368505,1740454218450,-500.0,0.00140822,120]
[354368506,1740454218480,-500.0,0.00140822,120]
[354368507,1740454218508,-500.0,0.00140822,120]
[354368508,1740454218536,-500.0,0.00140822,120]
[354368509,1740454218564,-150.48,0.00140822,64]
[354368510,1740454218593,-150.48,0.00140822,120]
[354368511,1740454218621,-500.0,0.00140822,120]
[354368512,1740454218654,-178.18297794,0.00140822,120]
[354368513,1740454218682,-500.0,0.00141096,120]
[354368514,1740454218710,-500.0,0.00141096,120]
[354368515,1740454218737,-500.0,0.00141096,120]
[354368516,1740454218764,-500.0,0.00141096,120]
[354368517,1740454218792,-500.0,0.00141096,120]
[354368518,1740454218821,-500.0,0.00141096,120]
[354368519,1740454218848,-237.28257981,0.00141096,64]
[354368520,1740454218875,-247.96454853,0.00141096,120]
[354368521,1740454218901,-997.33158435,0.00141096,120]
[354368522,1740454218933,-500.0,0.0014137,120]
[354368523,1740454218961,-500.0,0.0014137,120]
[354368524,1740454218990,-500.03,0.0014137,120]
[354368525,1740454219018,-500.0,0.0014137,120]
[354368526,1740454219044,-500.0,0.0014137,120]
[354368527,1740454219108,758.56,0.00068493,10]
[354368528,1740454219141,158.7877974,0.00132833,2]
[354368529,1740454219185,217.70955018,0.00142,120]
[354368530,1740454219298,814.37,0.00075468,10]
[354368531,1740454219332,6972.68447597,0.000339,6]
[354368532,1740454219389,2225.1672052,0.000259,37]
[354368533,1740454219425,151.20571936,0.00141716,120]
[354368534,1740454219463,198.89702018,0.00142,120]
[354368535,1740454222230,10000.0,0.0013,120]
[354368536,1740454228992,10000.0,0.0013,120]
[354368571,1740454232315,-31629.07403857,0.00033715,35]
[354368596,1740454238190,-4183.34312621,0.00033715,35]
[354368597,1740454238248,-1256.34000017,0.00033715,35]
[354368598,1740454238261,-57088.43546345,0.00033715,35]
[354368599,1740454238271,-1077.3973321,0.00033715,7]
[354368600,1740454238280,-251.76356742,0.00033715,7]
[354368601,1740454238290,-2995.39584544,0.00033715,7]
[354368602,1740454238299,-498.0,0.00033715,7]
[354368603,1740454238311,-28458.84611322,0.00033715,7]
[354368604,1740454238320,-11405.14692746,0.00033715,7]
[354368605,1740454238330,-6081.03771558,0.00033715,7]
[354368606,1740454238340,-228.57641041,0.00075478,120]
[354368607,1740454238349,-10000.0,0.0013,120]
[354368608,1740454238358,-10000.0,0.0013,120]
[354368609,1740454238367,-500.0,0.0015,120]
[354368610,1740454238377,-1000.0,0.0015,120]
[354368611,1740454238386,-1000.0,0.002,120]
[354368612,1740454238397,-500.0,0.002,14]
[354368613,1740454238406,-1000.0,0.0021,120]
[354368614,1740454238415,-10000.0,0.00225,120]
[354368615,1740454238424,-10000.0,0.00225,120]
[354368616,1740454238434,-10000.0,0.00225,120]
[354368617,1740454238443,-10000.0,0.00225,120]
[354368618,1740454238451,-3069.264455,0.002325,120]
[354368619,1740454238461,-1000.0,0.0024,120]
[354368620,1740454238470,-1460.0,0.0026,115]
[354368621,1740454238479,-500.0,0.002625,120]
[354368622,1740454238488,-1000.0,0.00263048,120]
[354368623,1740454238497,-1500.0,0.0026405,120]
[354368624,1740454238507,-1088.99752194,0.00265347,120]
[354368625,1740454238516,-151.0,0.00273973,120]
[354368626,1740454238526,-254.549108,0.00273973,120]
[354368627,1740454238536,-6972.68447597,0.00274107,81]
[354368628,1740454238545,-281.90672392,0.00274999,120]
[354368629,1740454238554,-10000.0,0.00275,120]
[354368630,1740454238563,-10000.0,0.00275,120]
[354368631,1740454238573,-10000.0,0.00275,120]
[354368632,1740454238582,-10000.0,0.00275,120]
[354368633,1740454238591,-10000.0,0.00275,120]
[354368634,1740454238601,-500.0,0.0028,120]
[354368635,1740454238610,-1000.0,0.003,120]
[354368636,1740454238619,-500.0,0.003,14]
[354368637,1740454238629,-1000.0,0.003,120]
[354368638,1740454238638,-5000.02819138,0.003,120]
[354368639,1740454238649,-10000.0,0.00345,120]
[354368640,1740454238658,-10000.0,0.00345,120]
[354368641,1740454238667,-10000.0,0.00345,120]
[354368642,1740454238676,-10000.0,0.00345,120]
[354368643,1740454238686,-10000.0,0.00345,120]
[354368644,1740454238695,-10000.0,0.00345,120]
[354368645,1740454238705,-10000.0,0.00345,120]
[354368646,1740454238714,-10000.0,0.00345,120]
[354368647,1740454238724,-10000.0,0.00345,120]
[354368648,1740454238733,-10000.0,0.00345,120]
[354368649,1740454238743,-10000.0,0.00345,120]
[354368650,1740454238752,-10000.0,0.00345,120]
[354368651,1740454238761,-10000.0,0.00345,120]
[354368652,1740454238865,-14999.0,0.0035,120]
[354368653,1740454238880,-1000.0,0.0038,120]
[354368654,1740454238890,-1000.0,0.0038,120]
[354368655,1740454238900,-1000.0,0.004,120]
[354368656,1740454238910,-1221.15840434,0.00443641,111]
[354368657,1740454238920,-10000.0,0.00445,120]
[354368658,1740454238930,-10000.0,0.00445,120]
[354368659,1740454238940,-10000.0,0.00445,120]
[354368660,1740454238950,-1000.0,0.0045,120]
[354368661,1740454238960,-500.0,0.0049315,120]
[354368662,1740454238969,-500.0,0.0049315,120]
[354368663,1740454238979,-500.0,0.0049315,120]
[354368664,1740454238989,-500.0,0.0049315,120]
[354368665,1740454238998,-507.82100001,0.0049315,120]
[354368666,1740454239008,-500.0,0.005,120]
[354368667,1740454239017,-11603.46682559,0.005,120]
[354368668,1740454239027,-163.684,0.005,14]
[354368669,1740454239036,-6972.68447597,0.00514314,120]
[354368670,1740454239045,-2225.16720519,0.005194,120]
[354368671,1740454239055,-3643.578525,0.005325,120]
[354368672,1740454239064,-10000.0,0.00545,120]
[354368673,1740454239074,-10000.0,0.00545,120]
[354368674,1740454239083,-1000.0,0.0055,120]
[354368675,1740454239093,-1000.0,0.006,120]
[354368676,1740454239102,-6844.88027013,0.00625,120]
[354368677,1740454239111,-3643.578525,0.006325,120]
[354368678,1740454239121,-10000.0,0.00645,120]
[354368679,1740454239129,-17480.9187771,0.00649898,120]
[354368680,1740454239138,-2411.62807498,0.00654207,30]
[354368681,1740454239147,-1719.0,0.00674731,110]
[354368682,1740454239157,-500.0,0.00684931,120]
[354368683,1740454239168,-500.0,0.00684931,120]
[354368684,1740454239179,-500.0,0.00684931,120]
[354368685,1740454239188,-500.0,0.00684931,120]
[354368686,1740454239198,-500.0,0.00684931,120]
[354368687,1740454239208,-500.0,0.00684931,120]
[354368688,1740454239217,-500.0,0.00684931,120]
[354368689,1740454239226,-500.0,0.00684931,120]
[354368690,1740454239235,-500.0,0.00684931,120]
[354368691,1740454239244,-500.0,0.00684931,120]
[354368692,1740454239256,-500.0,0.00684931,120]
[354368693,1740454239266,-500.0,0.00684931,120]
[354368694,1740454239275,-500.0,0.00684931,120]
[354368695,1740454239286,-500.0,0.00684931,120]
[354368696,1740454239295,-596.20477466,0.00684931,120]
[354368697,1740454239304,-226.49671927,0.00699999,31]
[354368698,1740454239314,-1000.0,0.007,120]
[354368699,1740454239323,-500.0,0.007,120]
[354368700,1740454239332,-14487.5010403,0.007,120]
[354368701,1740454239342,-3299.1506926,0.0071,120]
[354368702,1740454239352,-37519.49624897,0.0071,120]
[354368703,1740454239361,-1643.578525,0.007325,120]
[354368704,1740454239370,-40660.66803383,0.007474,120]
[354368705,1740454239380,-551.68191477,0.0074747,120]
[354368706,1740454239390,-1500.0,0.00749,120]
[354368707,1740454239401,-3834.54867517,0.007499,120]
[354368708,1740454239411,-27905.62111281,0.0075,120]
[354368709,1740454239420,-5000.0,0.0075,120]
[354368710,1740454239430,-62444.01812448,0.0075,120]
[354368711,1740454239440,-6972.68447597,0.00754521,120]
[354368712,1740454239450,-1763.986864,0.00763641,66]
[354368713,1740454239460,-3000.0,0.00799,120]
[354368714,1740454239469,-551.59434589,0.008,120]
[354368715,1740454239479,-500.0,0.008,120]
[354368716,1740454239488,-500.0,0.008,120]
[354368717,1740454239498,-500.0,0.008,120]
[354368718,1740454239507,-500.0,0.008,120]
[354368719,1740454239517,-500.0,0.008,120]
[354368720,1740454239528,-500.0,0.008,120]
[354368721,1740454239537,-500.0,0.008,120]
[354368722,1740454239547,-500.0,0.008,120]
[354368723,1740454239556,-500.0,0.008,120]
[354368724,1740454239566,-200.0,0.008,120]
[354368725,1740454239575,-500.0,0.008,120]
[354368726,1740454239585,-3578.64,0.008187,64]
[354368727,1740454239594,-1903.762,0.0082019,111]
[354368728,1740454239604,-5000.0,0.008488,120]
[354368729,1740454239614,-4000.0,0.00849,120]
[354368730,1740454239623,-225.6893492,0.00863999,120]
[354368731,1740454239633,-1514.79643352,0.0089,120]
[354368732,1740454239642,-500.0,0.0089,120]
[354368733,1740454239652,-5000.0,0.00899,120]
[354368734,1740454239661,-500.0,0.009,120]
[354368735,1740454239670,-1000.0,0.009,120]
[354368736,1740454239679,-1000.0,0.009,120]
[354368737,1740454239688,-1000.0,0.009,120]
[354368738,1740454239698,-1000.0,0.009,120]
[354368739,1740454239707,-1000.0,0.009,120]
[354368740,1740454239716,-1000.0,0.009,120]
[354368741,1740454239725,-1000.0,0.009,120]
[354368742,1740454239734,-1000.0,0.009,120]
[354368743,1740454239743,-1000.0,0.009,120]
[354368744,1740454239752,-1000.0,0.009,120]
[354368746,1740454239762,-1000.0,0.009,120]
[354368748,1740454239772,-1000.0,0.009,120]
[354368750,1740454239781,-1000.0,0.009,120]
[354368752,1740454239791,-1000.0,0.009,120]
[354368753,1740454239801,-1000.0,0.009,120]
[354368754,1740454239813,-1000.0,0.009,120]
[354368756,1740454239823,-1000.0,0.009,120]
[354368758,1740454239833,-1000.0,0.009,120]
[354368760,1740454239842,-1000.0,0.009,120]
[354368762,1740454239852,-1000.0,0.009,120]
[354368764,1740454239862,-1000.0,0.009,120]
[354368766,1740454239872,-1000.0,0.009,120]
[354368768,1740454239882,-1000.0,0.009,120]
[354368770,1740454239892,-1000.0,0.009,120]
[354368772,1740454239904,-1000.0,0.009,120]
[354368774,1740454239914,-1000.0,0.009,120]
[354368776,1740454239925,-1000.0,0.009,120]
[354368779,1740454239935,-1000.0,0.009,120]
[354368781,1740454239945,-1000.0,0.009,120]
[354368783,1740454239955,-1000.0,0.009,120]
[354368785,1740454239965,-1000.0,0.009,120]
[354368787,1740454239974,-1000.0,0.009,120]
[354368789,1740454239984,-1000.0,0.009,120]
[354368792,1740454239994,-1000.0,0.009,120]
[354368795,1740454240004,-1000.0,0.009,120]
[354368798,1740454240014,-1000.0,0.009,120]
[354368801,1740454240023,-1000.0,0.009,120]
[354368803,1740454240033,-1000.0,0.009,120]
[354368805,1740454240042,-999.95,0.009,120]
[354368807,1740454240052,-1000.0,0.009,120]
[354368809,1740454240062,-13710.86635141,0.009,120]
[354368811,1740454240071,-500.0,0.009,120]
[354368813,1740454240082,-500.0,0.009,120]
[354368814,1740454240091,-500.0,0.009,120]
[354368816,1740454240101,-500.0,0.009,120]
[354368818,1740454240111,-500.0,0.009,120]
[354368820,1740454240120,-500.0,0.009,120]
[354368822,1740454240130,-1000.0,0.009,120]
[354368824,1740454240139,-991.0367585,0.00901675,120]
[354368825,1740454240152,-575.0,0.00912329,120]
[354368827,1740454240163,-575.0,0.00912329,120]
[354368829,1740454240175,-575.0,0.00912329,120]
[354368831,1740454240185,-575.0,0.00912329,120]
[354368833,1740454240194,-575.0,0.00912329,120]
[354368835,1740454240206,-575.0,0.00912329,120]
[354368837,1740454240218,-575.0,0.00912329,120]
[354368839,1740454240227,-575.0,0.00912329,120]
[354368841,1740454240236,-575.0,0.00912329,120]
[354368843,1740454240247,-575.0,0.00912329,120]
[354368845,1740454240256,-575.0,0.00912329,120]
[354368846,1740454240266,-575.0,0.00912329,120]
[354368848,1740454240275,-575.0,0.00912329,120]
[354368849,1740454240284,-575.0,0.00912329,120]
[354368850,1740454240294,-575.0,0.00912329,120]
[354368851,1740454240303,-575.0,0.00912329,120]
[354368852,1740454240313,-575.0,0.00912329,120]
[354368853,1740454240322,-575.0,0.00912329,120]
[354368854,1740454240331,-575.0,0.00912329,120]
[354368855,1740454240341,-575.0,0.00912329,120]
[354368856,1740454240350,-575.0,0.00912329,120]
[354368857,1740454240360,-575.0,0.00912329,120]
[354368858,1740454240369,-575.0,0.00912329,120]
[354368859,1740454240378,-575.0,0.00912329,120]
[354368860,1740454240387,-575.0,0.00912329,120]
[354368861,1740454240396,-575.0,0.00912329,120]
[354368862,1740454240407,-575.0,0.00912329,120]
[354368863,1740454240417,-575.0,0.00912329,120]
[354368864,1740454240426,-575.0,0.00912329,120]
[354368865,1740454240435,-575.0,0.00912329,120]
[354368866,1740454240444,-575.0,0.00912329,120]
[354368867,1740454240454,-575.0,0.00912329,120]
[354368868,1740454240463,-575.0,0.00912329,120]
[354368869,1740454240472,-575.0,0.00912329,120]
[354368870,1740454240481,-575.0,0.00912329,120]
[354368871,1740454240490,-575.0,0.00912329,120]
[354368872,1740454240500,-575.0,0.00912329,120]
[354368874,1740454240509,-575.0,0.00912329,120]
[354368875,1740454240518,-575.0,0.00912329,120]
[354368877,1740454240528,-575.0,0.00912329,120]
[354368879,1740454240537,-575.0,0.00912329,120]
[354368881,1740454240546,-575.0,0.00912329,120]
[354368883,1740454240555,-575.0,0.00912329,120]
[354368885,1740454240565,-575.0,0.00912329,120]
[354368887,1740454240574,-575.0,0.00912329,120]
[354368889,1740454240583,-575.0,0.00912329,120]
[354368891,1740454240595,-575.0,0.00912329,120]
[354368893,1740454240606,-575.0,0.00912329,120]
[354368895,1740454240616,-575.0,0.00912329,120]
[354368897,1740454240626,-575.0,0.00912329,120]
[354368899,1740454240635,-575.0,0.00912329,120]
[354368910,1740454240730,-575.0,0.00912329,120]
[354368912,1740454240742,-575.0,0.00912329,120]
[354368914,1740454240752,-575.0,0.00912329,120]
[354368916,1740454240762,-575.0,0.00912329,120]
[354368918,1740454240773,-575.0,0.00912329,120]
[354368920,1740454240783,-575.0,0.00912329,120]
[354368922,1740454240794,-575.0,0.00912329,120]
[354368924,1740454240805,-575.0,0.00912329,120]
[354368926,1740454240816,-575.0,0.00912329,120]
[354368928,1740454240827,-575.0,0.00912329,120]
[354368930,1740454240837,-575.0,0.00912329,120]
[354368932,1740454240847,-575.0,0.00912329,120]
[354368934,1740454240862,-575.0,0.00912329,120]
[354368936,1740454240872,-575.0,0.00912329,120]
[354368938,1740454240881,-575.0,0.00912329,120]
[354368940,1740454240891,-575.0,0.00912329,120]
[354368942,1740454240903,-575.0,0.00912329,120]
[354368944,1740454240913,-575.0,0.00912329,120]
[354368946,1740454240923,-575.0,0.00912329,120]
[354368949,1740454240934,-575.0,0.00912329,120]
[354368951,1740454240944,-575.0,0.00912329,120]
[354368952,1740454240954,-575.0,0.00912329,120]
[354368955,1740454240964,-575.0,0.00912329,120]
[354368957,1740454240973,-575.0,0.00912329,120]
[354368958,1740454240983,-575.0,0.00912329,120]
[354368959,1740454240993,-575.0,0.00912329,120]
[354368960,1740454241003,-575.0,0.00912329,120]
[354368961,1740454241012,-575.0,0.00912329,120]
[354368962,1740454241022,-575.0,0.00912329,120]
[354368963,1740454241032,-575.0,0.00912329,120]
[354368964,1740454241042,-575.0,0.00912329,120]
[354368965,1740454241052,-575.0,0.00912329,120]
[354368966,1740454241061,-575.0,0.00912329,120]
[354368967,1740454241071,-575.0,0.00912329,120]
[354368968,1740454241080,-575.0,0.00912329,120]
[354368969,1740454241090,-575.0,0.00912329,120]
[354368970,1740454241099,-575.0,0.00912329,120]
[354368971,1740454241109,-575.0,0.00912329,120]
[354368972,1740454241118,-575.0,0.00912329,120]
[354368973,1740454241128,-575.0,0.00912329,120]
[354368974,1740454241137,-575.0,0.00912329,120]
[354368975,1740454241147,-575.0,0.00912329,120]
[354368976,1740454241157,-575.0,0.00912329,120]
[354368977,1740454241171,-575.0,0.00912329,120]
[354368978,1740454241180,-575.0,0.00912329,120]
[354368979,1740454241190,-575.0,0.00912329,120]
[354368980,1740454241199,-153.0,0.00912329,120]
[354368981,1740454241209,-153.0,0.00912329,120]
[354368982,1740454241219,-153.0,0.00912329,120]
[354368983,1740454241228,-153.0,0.00912329,120]
[354368984,1740454241237,-153.0,0.00912329,120]
[354368985,1740454241247,-153.0,0.00912329,120]
[354368986,1740454241257,-153.0,0.00912329,120]
[354368987,1740454241266,-153.0,0.00912329,120]
[354368988,1740454241275,-153.0,0.00912329,120]
[354368989,1740454241284,-153.0,0.00912329,120]
[354368990,1740454241293,-153.0,0.00912329,120]
[354368991,1740454241303,-153.0,0.00912329,120]
[354368992,1740454241312,-153.0,0.00912329,120]
[354368993,1740454241321,-153.0,0.00912329,120]
[354368994,1740454241330,-153.0,0.00912329,120]
[354368995,1740454241340,-153.0,0.00912329,120]
[354368996,1740454241349,-153.0,0.00912329,120]
[354368997,1740454241358,-153.0,0.00912329,120]
[354368998,1740454241368,-153.0,0.00912329,120]
[354368999,1740454241378,-153.0,0.00912329,120]
[354369000,1740454241387,-3000.0,0.00939,120]
[354369001,1740454241397,-6500.0,0.00949,120]
[354369002,1740454241407,-22000.0,0.00949,120]
[354369003,1740454241416,-1000.0,0.0095,120]
[354369004,1740454241426,-1842159.48459444,0.009588,120]
[354369005,1740454241459,-1780.48791447,0.009588,120]
[354369006,1740454241507,-2675702.75483385,0.009588,120]
[354369036,1740454246562,-500.0,0.00075478,120]
[354369037,1740454246572,-500.0,0.00078218,120]
[354369038,1740454246581,-500.0,0.00080958,120]
[354369039,1740454246591,-500.0,0.00083697,120]
[354369040,1740454246600,-500.0,0.00086437,120]
[354369041,1740454246608,-500.0,0.00089177,120]
[354369042,1740454246617,-500.0,0.00091916,120]
[354369043,1740454246627,-500.0,0.00094656,120]
[354369044,1740454246636,-500.0,0.00097396,120]
[354369045,1740454246645,-500.0,0.00100136,120]
[354369046,1740454246654,-500.0,0.00102875,120]
[354369047,1740454246685,-500.0,0.00105615,120]
[354369217,1740455225091,-251.584,0.00047135,60]
[354369218,1740455225114,-501.39997365,0.000499,120]
[354369219,1740455242079,-2571.80499473,0.000478,2]
[354369220,1740455242101,-833.70034948,0.000499,120]
[354369221,1740455242122,-550.0,0.00049999,15]
[354369222,1740455242142,-8816.30217417,0.0005,120]
[354369223,1740455247089,-813.67662029,0.0005,120]
[354369224,1740455370278,500010.0,0.00035962,60]
[354369225,1740455402614,-200.0,0.0003,30]
[354369226,1740455402647,-550.0,0.00049999,15]
[354369227,1740455402676,-90370.02120554,0.0005,120]
[354369228,1740455402706,-2571.80499473,0.000528,2]
[354369229,1740455402734,-6320.77120412,0.000529,12]
[354369230,1740455402761,-2571.80499473,0.000578,2]
[354369231,1740455402788,-833.33,0.00069998,120]
[354369232,1740455402814,-2000.0,0.0007,100]
[354369233,1740455402840,-833.33,0.00070546,120]
[354369234,1740455402868,-833.33,0.00071094,120]
[354369235,1740455402893,-833.33,0.00071642,120]
[354369236,1740455402919,-833.33,0.0007219,120]
[354369237,1740455402944,-833.33,0.00072738,120]
[354369238,1740455402971,-833.33,0.00073286,120]
[354369239,1740455402998,-154.2,0.00073286,30]
[354369240,1740455403039,-833.33,0.00073834,120]
[354369241,1740455403070,-833.33,0.00074382,120]
[354369242,1740455403100,-833.33,0.0007493,120]
[354369243,1740455403130,-500.85253705,0.00075478,120]
[354369244,1740455403159,-402.67134412,0.00075478,120]
[354369245,1740455403190,-833.33,0.00075478,120]
[354369246,1740455403219,-503.18857842,0.00075478,120]
[354369247,1740455403248,-500.0,0.00075478,120]
[354369248,1740455403277,-500.0,0.00075478,120]
[354369249,1740455403306,-500.0,0.00075478,120]
[354369250,1740455403335,-2494.05023926,0.00075478,120]
[354369251,1740455403367,-500.0,0.00075478,120]
[354369252,1740455403405,-500.0,0.00075478,120]
[354369253,1740455403438,-500.0,0.00075478,120]
[354369254,1740455403470,-500.0,0.00075478,120]
[354369255,1740455403503,-500.0,0.00075478,120]
[354369256,1740455403535,-500.0,0.00075478,120]
[354369257,1740455403576,-500.0,0.00075478,120]
[354369258,1740455403620,-451.76195016,0.00075478,120]
[354369259,1740455403650,-500.0,0.00075478,120]
[354369260,1740455403680,-27291.62,0.00075478,120]
[354369261,1740455403711,-500.0,0.00075478,120]
[354369262,1740455403745,-500.0,0.00075478,120]
[354369263,1740455403774,-1000.0,0.00075478,2]
[354369264,1740455403803,-505.95261387,0.00075478,120]
[354369265,1740455403834,-500.0,0.00075478,120]
[354369266,1740455403864,-500.0,0.00075478,120]
[354369267,1740455403894,-833.33,0.00075478,120]
[354369268,1740455403922,-833.33,0.00076026,120]
[354369269,1740455403953,-833.33,0.00076573,120]
[354369270,1740455403981,-833.33,0.00077121,120]
[354369271,1740455404010,-833.33,0.00077669,120]
[354369272,1740455404040,-833.33,0.00078217,120]
[354369273,1740455404069,-500.0,0.00078217,120]
[354369274,1740455404097,-500.0,0.00078217,120]
[354369275,1740455404126,-533.11,0.00078217,120]
[354369276,1740455404155,-500.0,0.00078218,120]
[354369277,1740455404186,-500.0,0.00078218,120]
[354369278,1740455404217,-500.0,0.00078218,120]
[354369279,1740455404247,-500.0,0.00078218,120]
[354369280,1740455404278,-500.0,0.00078218,120]
[354369281,1740455404308,-500.0,0.00078218,120]
[354369282,1740455404337,-27291.62,0.00078218,120]
[354369283,1740455404366,-1000.0,0.00078218,2]
[354369284,1740455404487,-833.33,0.00078218,120]
[354369285,1740455404515,-833.33,0.00078765,120]
[354369286,1740455404544,-833.33,0.00079313,120]
[354369287,1740455404574,-833.33,0.00079861,120]
[354369288,1740455404600,-833.33,0.00080409,120]
[354369289,1740455404628,-833.33,0.00080957,120]
[354369290,1740455404657,-507.48,0.00080957,120]
[354369291,1740455404684,-500.0,0.00080957,120]
[354369292,1740455404712,-533.11,0.00080957,120]
[354369293,1740455404744,-552.5090733,0.00080958,120]
[354369294,1740455404770,-500.0,0.00080958,120]
[354369295,1740455404796,-27291.62,0.00080958,120]
[354369296,1740455404824,-1000.0,0.00080958,2]
[354369297,1740455404853,-833.33,0.00080958,120]
[354369298,1740455404881,-833.33,0.00081505,120]
[354369299,1740455404910,-833.33,0.00082053,120]
[354369300,1740455404941,-833.41,0.00082601,120]
[354369301,1740455404974,-313.22969325,0.00083696,120]
[354369302,1740455405007,-500.0,0.00083697,120]
[354369303,1740455405039,-27291.62,0.00083697,120]
[354369304,1740455405073,-833.1355537,0.00083697,2]
[354369305,1740455405106,-833.33,0.00083697,120]
[354369306,1740455405138,-533.11,0.00083697,120]
[354369307,1740455405167,-2660.88,0.000837,60]
[354369308,1740455405197,-533.11,0.00086436,120]
[354369309,1740455405225,-500.0,0.00086437,120]
[354369310,1740455405252,-27291.62,0.00086437,120]
[354369311,1740455405279,-833.33,0.00086437,120]
[354369312,1740455405314,-500.0,0.00088278,14]
[354369313,1740455405343,-647.972463,0.00088826,14]
[354369314,1740455405373,-533.11,0.00089176,120]
[354369315,1740455405402,-500.0,0.00089177,120]
[354369316,1740455405437,-27291.62,0.00089177,120]
[354369317,1740455405464,-833.33,0.00089177,120]
[354369318,1740455405493,-201.61534796,0.0008919,10]
[354369319,1740455405521,-158.54770348,0.00089199,31]
[354369320,1740455405548,-386422.88,0.000892,2]
[354369321,1740455405578,-11713.66,0.000892,60]
[354369322,1740455405606,-5864.53,0.000892,60]
[354369323,1740455405635,-500.0,0.00091916,120]
[354369324,1740455405673,-27291.62,0.00091916,120]
[354369325,1740455405712,-833.33,0.00091916,120]
[354369326,1740455405748,-533.11,0.00091916,120]
[354369327,1740455405782,-500.0,0.00094656,120]